[Event "Early-Titled-Tuesday-Blitz-March-05-2024"]
[Site "Chess.com"]
[Date "2024.03.05"]
[Round "9"]
[White "Kumi29"]
[Black "AttilaTurzo"]
[Result "0-1"]
[WhiteElo "2589"]
[BlackElo "2484"]
[TimeControl "180+1"]
[EndTime "9:46:43 PST"]
[Termination "AttilaTurzo won on time"]

1. d4 {[%clk 0:03:00.9]} 1... Nf6 {[%clk 0:02:37.8]} 2. Bg5 {[%clk 0:03:00.1]}
2... e6 {[%clk 0:02:36]} 3. Nd2 {[%clk 0:03:00]} 3... h6 {[%clk 0:02:35.4]} 4.
Bh4 {[%clk 0:03:00.2]} 4... c5 {[%clk 0:02:35.6]} 5. e3 {[%clk 0:03:00.8]} 5...
b6 {[%clk 0:02:33.5]} 6. Qf3 {[%clk 0:03:00.1]} 6... Nc6 {[%clk 0:02:30.3]} 7.
Ne4 {[%clk 0:03:00]} 7... Be7 {[%clk 0:02:27.6]} 8. Bxf6 {[%clk 0:03:00.3]} 8...
gxf6 {[%clk 0:02:27.2]} 9. d5 {[%clk 0:03:00.6]} 9... exd5 {[%clk 0:02:22]} 10.
Nc3 {[%clk 0:03:00.2]} 10... Nb4 {[%clk 0:02:16.7]} 11. O-O-O {[%clk 0:02:55.5]}
11... Bb7 {[%clk 0:02:14.5]} 12. a3 {[%clk 0:02:46.3]} 12... Na6 {[%clk
0:01:50.8]} 13. Nxd5 {[%clk 0:02:46.2]} 13... Rb8 {[%clk 0:01:48.5]} 14. Bb5
{[%clk 0:02:23.6]} 14... Kf8 {[%clk 0:01:38.7]} 15. Qf4 {[%clk 0:02:16.1]} 15...
d6 {[%clk 0:01:26.8]} 16. Nxe7 {[%clk 0:01:55.5]} 16... Kxe7 {[%clk 0:01:22.5]}
17. Nf3 {[%clk 0:01:51.7]} 17... Nc7 {[%clk 0:01:21.9]} 18. Bc4 {[%clk
0:01:43.9]} 18... Bxf3 {[%clk 0:01:15]} 19. gxf3 {[%clk 0:01:39.7]} 19... b5
{[%clk 0:01:15.4]} 20. Bd5 {[%clk 0:01:35.4]} 20... b4 {[%clk 0:01:14.4]} 21. a4
{[%clk 0:01:31.4]} 21... Qd7 {[%clk 0:01:10.3]} 22. b3 {[%clk 0:01:20.8]} 22...
Qd8 {[%clk 0:00:49.9]} 23. Qc4 {[%clk 0:01:03.4]} 23... Ne6 {[%clk 0:00:41.3]}
24. f4 {[%clk 0:00:55.9]} 24... Qf8 {[%clk 0:00:18.9]} 25. f5 {[%clk 0:00:48]}
25... Nc7 {[%clk 0:00:16.6]} 26. Rd2 {[%clk 0:00:25.2]} 26... Rd8 {[%clk
0:00:14]} 27. Bb7 {[%clk 0:00:17.9]} 27... Qg7 {[%clk 0:00:09.8]} 28. Qe4+
{[%clk 0:00:15.6]} 28... Kf8 {[%clk 0:00:10.2]} 29. Rdd1 {[%clk 0:00:15.7]}
29... Qg5 {[%clk 0:00:08.6]} 30. Rhg1 {[%clk 0:00:13.7]} 30... Qh5 {[%clk
0:00:08.6]} 31. Bc6 {[%clk 0:00:12.7]} 31... Qe2 {[%clk 0:00:07.4]} 32. Rxd6
{[%clk 0:00:11.5]} 32... Rxd6 {[%clk 0:00:02.2]} 33. Bb5 {[%clk 0:00:10.9]}
33... Nxb5 {[%clk 0:00:01.7]} 34. Qa8+ {[%clk 0:00:10.8]} 34... Ke7 {[%clk
0:00:01.1]} 35. Qxh8 {[%clk 0:00:09.5]} 35... Na3 {[%clk 0:00:01.5]} 0-1

[Event "Early-Titled-Tuesday-Blitz-March-05-2024"]
[Site "Chess.com"]
[Date "2024.03.05"]
[Round "9"]
[White "MaxLeto"]
[Black "Happy1712Drummer"]
[Result "1-0"]
[WhiteElo "2448"]
[BlackElo "2301"]
[TimeControl "180+1"]
[EndTime "9:46:44 PST"]
[Termination "MaxLeto won on time"]

1. g4 {[%clk 0:03:00.9]} 1... d5 {[%clk 0:02:58.7]} 2. Bg2 {[%clk 0:03:00.8]}
2... Bxg4 {[%clk 0:02:56.6]} 3. c4 {[%clk 0:03:00.7]} 3... e6 {[%clk 0:02:55.7]}
4. Qb3 {[%clk 0:03:00.5]} 4... Nd7 {[%clk 0:02:48]} 5. Qxb7 {[%clk 0:02:59.7]}
5... Ngf6 {[%clk 0:02:44.3]} 6. Nc3 {[%clk 0:02:56.5]} 6... Rb8 {[%clk
0:02:23.3]} 7. Qxa7 {[%clk 0:02:51.3]} 7... Bc5 {[%clk 0:02:22.9]} 8. Qa4 {[%clk
0:02:51.2]} 8... O-O {[%clk 0:02:20.2]} 9. cxd5 {[%clk 0:02:50.4]} 9... Nb6
{[%clk 0:02:12.3]} 10. Qc6 {[%clk 0:02:44.6]} 10... Be7 {[%clk 0:01:52.3]} 11.
dxe6 {[%clk 0:02:40.9]} 11... Bxe6 {[%clk 0:01:51.8]} 12. Nf3 {[%clk 0:02:36.9]}
12... Nbd5 {[%clk 0:01:44.5]} 13. d3 {[%clk 0:02:27.8]} 13... Nb4 {[%clk
0:01:39.2]} 14. Qa4 {[%clk 0:02:27.5]} 14... Ra8 {[%clk 0:01:35.8]} 15. Qd1
{[%clk 0:02:26.4]} 15... Nxa2 {[%clk 0:01:22.9]} 16. Nxa2 {[%clk 0:01:55.3]}
16... Bxa2 {[%clk 0:01:22.8]} 17. O-O {[%clk 0:01:49.1]} 17... Bd6 {[%clk
0:01:20.2]} 18. Bg5 {[%clk 0:01:47.4]} 18... h6 {[%clk 0:01:15.6]} 19. Bh4
{[%clk 0:01:45]} 19... Be7 {[%clk 0:01:06.3]} 20. Qc2 {[%clk 0:01:41.1]} 20...
Nd5 {[%clk 0:01:00.7]} 21. Bxe7 {[%clk 0:01:34.5]} 21... Qxe7 {[%clk 0:01:00.7]}
22. b3 {[%clk 0:01:29.8]} 22... Qa3 {[%clk 0:00:48.5]} 23. Nd2 {[%clk
0:01:25.3]} 23... Nb4 {[%clk 0:00:41.2]} 24. Qc3 {[%clk 0:00:53.3]} 24... Ra6
{[%clk 0:00:21.3]} 25. Rfc1 {[%clk 0:00:19.3]} 25... Rg6 {[%clk 0:00:21]} 26.
Kf1 {[%clk 0:00:18.8]} 26... Rf6 {[%clk 0:00:16.5]} 27. Ne4 {[%clk 0:00:12.2]}
27... Rg6 {[%clk 0:00:15.1]} 28. Nc5 {[%clk 0:00:08.7]} 28... Qa7 {[%clk
0:00:13.3]} 29. Qxb4 {[%clk 0:00:08.2]} 29... Rb6 {[%clk 0:00:11.5]} 30. Qd2
{[%clk 0:00:06.2]} 30... Rg6 {[%clk 0:00:10]} 31. Rxa2 {[%clk 0:00:05.5]} 31...
Qb6 {[%clk 0:00:07]} 32. Ra6 {[%clk 0:00:05.8]} 32... Qb5 {[%clk 0:00:02.9]} 33.
Rxg6 {[%clk 0:00:06]} 33... fxg6 {[%clk 0:00:03.8]} 34. Ne4 {[%clk 0:00:05.4]}
34... Qf5 {[%clk 0:00:02.3]} 35. Qe3 {[%clk 0:00:04.8]} 1-0

[Event "Early-Titled-Tuesday-Blitz-March-05-2024"]
[Site "Chess.com"]
[Date "2024.03.05"]
[Round "9"]
[White "FMStan15"]
[Black "Pelusiansky"]
[Result "0-1"]
[WhiteElo "2098"]
[BlackElo "2572"]
[TimeControl "180+1"]
[EndTime "9:46:47 PST"]
[Termination "Pelusiansky won on time"]

1. e4 {[%clk 0:02:56.2]} 1... c6 {[%clk 0:02:59.9]} 2. d4 {[%clk 0:02:51.3]}
2... d5 {[%clk 0:03:00.2]} 3. e5 {[%clk 0:02:45.2]} 3... Bf5 {[%clk 0:03:00]} 4.
Bd3 {[%clk 0:02:44.4]} 4... Bxd3 {[%clk 0:02:57.8]} 5. Qxd3 {[%clk 0:02:44]}
5... e6 {[%clk 0:02:55.9]} 6. c3 {[%clk 0:02:44.9]} 6... c5 {[%clk 0:02:54.2]}
7. Ne2 {[%clk 0:02:45.4]} 7... Nc6 {[%clk 0:02:54.4]} 8. O-O {[%clk 0:02:44.8]}
8... Nge7 {[%clk 0:02:53.5]} 9. Rd1 {[%clk 0:02:44.8]} 9... Nf5 {[%clk
0:02:51.5]} 10. Nd2 {[%clk 0:02:42]} 10... cxd4 {[%clk 0:02:49.4]} 11. cxd4
{[%clk 0:02:41.4]} 11... Be7 {[%clk 0:02:47]} 12. Nf3 {[%clk 0:02:41.3]} 12...
O-O {[%clk 0:02:45.6]} 13. a3 {[%clk 0:02:40.8]} 13... Rc8 {[%clk 0:02:43.7]}
14. b4 {[%clk 0:02:38.8]} 14... a5 {[%clk 0:02:40.4]} 15. b5 {[%clk 0:02:38]}
15... Na7 {[%clk 0:02:40.8]} 16. a4 {[%clk 0:02:37.8]} 16... Bb4 {[%clk
0:02:27.6]} 17. Bb2 {[%clk 0:02:35.5]} 17... Rc4 {[%clk 0:02:24.9]} 18. Nf4
{[%clk 0:02:17.4]} 18... Nc8 {[%clk 0:02:11.3]} 19. Nd2 {[%clk 0:02:07.6]} 19...
Bxd2 {[%clk 0:02:09.8]} 20. Rxd2 {[%clk 0:02:05]} 20... Nb6 {[%clk 0:02:09.4]}
21. Qb3 {[%clk 0:01:53.1]} 21... Qg5 {[%clk 0:01:57.6]} 22. g3 {[%clk
0:01:50.4]} 22... Rfc8 {[%clk 0:01:57.4]} 23. Rdd1 {[%clk 0:01:37.2]} 23... Rb4
{[%clk 0:01:51.4]} 24. Qa2 {[%clk 0:01:31.6]} 24... Rxa4 {[%clk 0:01:46.5]} 25.
Qb1 {[%clk 0:01:25.5]} 25... Rxa1 {[%clk 0:01:44.7]} 26. Qxa1 {[%clk 0:01:22.9]}
26... Nc4 {[%clk 0:01:45]} 27. Bc3 {[%clk 0:01:21.8]} 27... b6 {[%clk
0:01:44.6]} 28. Rc1 {[%clk 0:01:08.6]} 28... Qd8 {[%clk 0:01:35.9]} 29. Ne2
{[%clk 0:00:58.4]} 29... Qd7 {[%clk 0:01:34.2]} 30. Rb1 {[%clk 0:00:54.4]} 30...
h6 {[%clk 0:01:32.2]} 31. h4 {[%clk 0:00:53.6]} 31... Qe7 {[%clk 0:01:26.8]} 32.
Qa2 {[%clk 0:00:52.3]} 32... Qa3 {[%clk 0:01:26.1]} 33. Qc2 {[%clk 0:00:45.7]}
33... Qe7 {[%clk 0:01:18.4]} 34. Qd3 {[%clk 0:00:42.4]} 34... a4 {[%clk
0:01:16.9]} 35. Ra1 {[%clk 0:00:40.7]} 35... a3 {[%clk 0:01:16.9]} 36. Qc2
{[%clk 0:00:38.9]} 36... Qd7 {[%clk 0:01:09.9]} 37. Qb3 {[%clk 0:00:38.7]} 37...
Ra8 {[%clk 0:01:07.9]} 38. Nc1 {[%clk 0:00:35.8]} 38... Ne7 {[%clk 0:01:02.7]}
39. Na2 {[%clk 0:00:33.4]} 39... Nc8 {[%clk 0:01:02.6]} 40. Qb4 {[%clk
0:00:26.9]} 40... Ra5 {[%clk 0:01:00.1]} 41. Rb1 {[%clk 0:00:25.1]} 41... Na7
{[%clk 0:01:00.3]} 42. Qb3 {[%clk 0:00:20]} 42... Rxb5 {[%clk 0:00:57.6]} 43.
Qc2 {[%clk 0:00:20.1]} 43... Rxb1+ {[%clk 0:00:56.6]} 44. Qxb1 {[%clk
0:00:20.2]} 44... Qa4 {[%clk 0:00:54.4]} 45. Nb4 {[%clk 0:00:17.6]} 45... Nb5
{[%clk 0:00:53]} 46. Be1 {[%clk 0:00:15.7]} 46... Nxd4 {[%clk 0:00:50.8]} 47.
Qa1 {[%clk 0:00:13.1]} 47... Nc2 {[%clk 0:00:47.1]} 48. Nxc2 {[%clk 0:00:11.6]}
48... Qxc2 {[%clk 0:00:47.3]} 49. Kg2 {[%clk 0:00:05.5]} 49... Qb2 {[%clk
0:00:42.8]} 50. Bc3 {[%clk 0:00:01.5]} 50... Qxa1 {[%clk 0:00:38]} 51. Bxa1
{[%clk 0:00:01.7]} 51... b5 {[%clk 0:00:38.9]} 52. Bc3 {[%clk 0:00:01.5]} 52...
a2 {[%clk 0:00:37.2]} 0-1

[Event "Early-Titled-Tuesday-Blitz-March-05-2024"]
[Site "Chess.com"]
[Date "2024.03.05"]
[Round "9"]
[White "Kislov_Oleg"]
[Black "lagunanivaria"]
[Result "0-1"]
[WhiteElo "2560"]
[BlackElo "2455"]
[TimeControl "180+1"]
[EndTime "9:46:52 PST"]
[Termination "lagunanivaria won by resignation"]

1. e4 {[%clk 0:03:00.9]} 1... c6 {[%clk 0:02:59.2]} 2. d4 {[%clk 0:03:00.5]}
2... d5 {[%clk 0:02:59.3]} 3. Nc3 {[%clk 0:03:00.7]} 3... dxe4 {[%clk
0:02:58.9]} 4. Nxe4 {[%clk 0:03:00.9]} 4... Bf5 {[%clk 0:02:59.6]} 5. Ng3 {[%clk
0:03:00.7]} 5... Bg6 {[%clk 0:03:00.2]} 6. N1e2 {[%clk 0:03:00.8]} 6... e6
{[%clk 0:02:59.2]} 7. Nf4 {[%clk 0:03:00.8]} 7... Bd6 {[%clk 0:02:55.3]} 8. Ngh5
{[%clk 0:03:00.8]} 8... Kf8 {[%clk 0:02:49.4]} 9. Bc4 {[%clk 0:02:57.8]} 9...
Nf6 {[%clk 0:02:45.2]} 10. O-O {[%clk 0:02:41.1]} 10... Nxh5 {[%clk 0:02:44.4]}
11. Nxh5 {[%clk 0:02:40.6]} 11... Bxh2+ {[%clk 0:02:39.2]} 12. Kxh2 {[%clk
0:02:36.1]} 12... Qh4+ {[%clk 0:02:38.1]} 13. Kg1 {[%clk 0:02:35.7]} 13... Bxh5
{[%clk 0:02:36.4]} 14. Qd3 {[%clk 0:02:33.4]} 14... Nd7 {[%clk 0:02:33.1]} 15.
g3 {[%clk 0:02:24.4]} 15... Qg4 {[%clk 0:02:18]} 16. Bf4 {[%clk 0:02:22.3]}
16... Qf3 {[%clk 0:02:13.3]} 17. Qd2 {[%clk 0:02:16.6]} 17... Bg4 {[%clk
0:02:11.2]} 18. Rfe1 {[%clk 0:02:08.9]} 18... Bh3 {[%clk 0:02:09.7]} 19. Bf1
{[%clk 0:02:06.2]} 19... Bxf1 {[%clk 0:02:09.4]} 20. Rxf1 {[%clk 0:02:05.9]}
20... Nb6 {[%clk 0:02:00.2]} 21. Qb4+ {[%clk 0:02:00.2]} 21... Ke8 {[%clk
0:01:59.3]} 22. Rfe1 {[%clk 0:01:51.8]} 22... Qd5 {[%clk 0:01:56.5]} 23. b3
{[%clk 0:01:46.3]} 23... Rd8 {[%clk 0:01:53.9]} 24. Rad1 {[%clk 0:01:40.1]}
24... Qb5 {[%clk 0:01:53.1]} 25. Qa3 {[%clk 0:01:36.2]} 25... Qa6 {[%clk
0:01:49.8]} 26. Qxa6 {[%clk 0:01:24.3]} 26... bxa6 {[%clk 0:01:49]} 27. c4
{[%clk 0:01:21.1]} 27... Kd7 {[%clk 0:01:47.9]} 28. Re5 {[%clk 0:01:19.9]} 28...
Kc8 {[%clk 0:01:43.1]} 29. Kg2 {[%clk 0:01:10.8]} 29... Rd7 {[%clk 0:01:41.6]}
30. Be3 {[%clk 0:01:09.7]} 30... Kb7 {[%clk 0:01:38.9]} 31. Rh1 {[%clk
0:01:07.8]} 31... Rdd8 {[%clk 0:01:36.8]} 32. g4 {[%clk 0:01:05.3]} 32... Nd7
{[%clk 0:01:34.8]} 33. Reh5 {[%clk 0:01:02.4]} 33... Nf6 {[%clk 0:01:33.8]} 34.
R5h4 {[%clk 0:01:02.6]} 34... h6 {[%clk 0:00:50.7]} 35. g5 {[%clk 0:01:01.9]}
35... Ng8 {[%clk 0:00:51.1]} 36. Kf3 {[%clk 0:00:57.9]} 36... Ne7 {[%clk
0:00:47]} 37. Ke4 {[%clk 0:00:46.8]} 37... Nf5 {[%clk 0:00:43.8]} 38. R4h3
{[%clk 0:00:47]} 38... Rh7 {[%clk 0:00:34.6]} 39. gxh6 {[%clk 0:00:45.3]} 39...
gxh6 {[%clk 0:00:35.5]} 40. Rg1 {[%clk 0:00:42.6]} 40... h5 {[%clk 0:00:27.7]}
41. Ke5 {[%clk 0:00:39.6]} 41... h4 {[%clk 0:00:23.2]} 42. Rg4 {[%clk
0:00:39.2]} 42... Rh5 {[%clk 0:00:16.7]} 43. Kf6 {[%clk 0:00:37.6]} 43... Rd7
{[%clk 0:00:17.1]} 44. Rg8 {[%clk 0:00:21.7]} 44... Nxe3 {[%clk 0:00:16.9]} 45.
fxe3 {[%clk 0:00:19.3]} 45... Rf5+ {[%clk 0:00:17.5]} 46. Kg7 {[%clk 0:00:19.8]}
46... Rg5+ {[%clk 0:00:16]} 47. Kh7 {[%clk 0:00:19.9]} 47... f5+ {[%clk
0:00:13.4]} 48. Kh6 {[%clk 0:00:15.2]} 48... Rxg8 {[%clk 0:00:13.2]} 49. Rxh4
{[%clk 0:00:15.3]} 49... Rh8+ {[%clk 0:00:13.4]} 50. Kg5 {[%clk 0:00:15.7]}
50... Rxh4 {[%clk 0:00:14.3]} 51. Kxh4 {[%clk 0:00:15.9]} 51... Rg7 {[%clk
0:00:15]} 0-1

[Event "Early-Titled-Tuesday-Blitz-March-05-2024"]
[Site "Chess.com"]
[Date "2024.03.05"]
[Round "9"]
[White "Hikaru"]
[Black "TigrVShlyape"]
[Result "1-0"]
[WhiteElo "3261"]
[BlackElo "2863"]
[TimeControl "180+1"]
[EndTime "9:46:53 PST"]
[Termination "Hikaru won on time"]

1. h3 {[%clk 0:03:00.9]} 1... d5 {[%clk 0:02:56.7]} 2. d4 {[%clk 0:03:00.2]}
2... Bf5 {[%clk 0:02:56.5]} 3. c4 {[%clk 0:03:00.3]} 3... e6 {[%clk 0:02:55]} 4.
Nc3 {[%clk 0:03:00.5]} 4... c6 {[%clk 0:02:54.6]} 5. Nf3 {[%clk 0:02:54.2]} 5...
Nd7 {[%clk 0:02:53.6]} 6. Bf4 {[%clk 0:02:46.7]} 6... Qb6 {[%clk 0:02:47.2]} 7.
Qc1 {[%clk 0:02:38.6]} 7... a5 {[%clk 0:02:38.3]} 8. a3 {[%clk 0:02:32.3]} 8...
Ngf6 {[%clk 0:02:36.3]} 9. c5 {[%clk 0:02:32.1]} 9... Qa7 {[%clk 0:02:35.3]} 10.
Nh4 {[%clk 0:02:28.3]} 10... Bg6 {[%clk 0:02:34.5]} 11. e3 {[%clk 0:02:25.8]}
11... Be7 {[%clk 0:02:32.5]} 12. Nxg6 {[%clk 0:02:24.8]} 12... hxg6 {[%clk
0:02:32.1]} 13. Bd3 {[%clk 0:02:24.3]} 13... O-O {[%clk 0:02:28.2]} 14. O-O
{[%clk 0:02:23.4]} 14... a4 {[%clk 0:02:24.7]} 15. Bc2 {[%clk 0:02:20]} 15... b5
{[%clk 0:02:23.7]} 16. Na2 {[%clk 0:02:12.7]} 16... Rfe8 {[%clk 0:02:20.9]} 17.
Nb4 {[%clk 0:02:13.1]} 17... Qb7 {[%clk 0:02:19.9]} 18. Bd3 {[%clk 0:01:56.5]}
18... Bd8 {[%clk 0:02:13.9]} 19. Bd6 {[%clk 0:01:54.6]} 19... e5 {[%clk
0:02:13.1]} 20. Qc2 {[%clk 0:01:52.5]} 20... Re6 {[%clk 0:01:36.2]} 21. b3
{[%clk 0:01:28.7]} 21... axb3 {[%clk 0:01:34.2]} 22. Qxb3 {[%clk 0:01:29.6]}
22... Be7 {[%clk 0:01:15.4]} 23. Bxe7 {[%clk 0:01:25]} 23... Rxe7 {[%clk
0:01:15]} 24. a4 {[%clk 0:01:24.1]} 24... bxa4 {[%clk 0:01:14.5]} 25. Rxa4
{[%clk 0:01:25]} 25... exd4 {[%clk 0:01:09.8]} 26. exd4 {[%clk 0:01:16.4]} 26...
Ree8 {[%clk 0:01:08.7]} 27. Ba6 {[%clk 0:01:11.4]} 27... Qc7 {[%clk 0:01:06.9]}
28. Qg3 {[%clk 0:01:11.3]} 28... Ra7 {[%clk 0:00:53.4]} 29. Qxc7 {[%clk
0:01:08.4]} 29... Rxc7 {[%clk 0:00:53.5]} 30. Bd3 {[%clk 0:01:08.9]} 30... Nf8
{[%clk 0:00:51.3]} 31. Ra6 {[%clk 0:01:08.3]} 31... Rec8 {[%clk 0:00:50.8]} 32.
Rd1 {[%clk 0:01:05.1]} 32... Ne6 {[%clk 0:00:51]} 33. Be2 {[%clk 0:01:05.7]}
33... Kf8 {[%clk 0:00:42.8]} 34. Rd3 {[%clk 0:00:47.6]} 34... Ng8 {[%clk
0:00:40.6]} 35. Bg4 {[%clk 0:00:43.7]} 35... f5 {[%clk 0:00:40.1]} 36. Bd1
{[%clk 0:00:44.3]} 36... Ne7 {[%clk 0:00:38.1]} 37. Ba4 {[%clk 0:00:43.5]} 37...
g5 {[%clk 0:00:27.9]} 38. Rd1 {[%clk 0:00:39.4]} 38... Kf7 {[%clk 0:00:27.4]}
39. Rd2 {[%clk 0:00:31.3]} 39... Kf6 {[%clk 0:00:25.6]} 40. Kh2 {[%clk
0:00:30.9]} 40... Kf7 {[%clk 0:00:16.7]} 41. Rb6 {[%clk 0:00:24.3]} 41... Kf6
{[%clk 0:00:16.2]} 42. Bd1 {[%clk 0:00:18.7]} 42... Ra7 {[%clk 0:00:15.2]} 43.
Bf3 {[%clk 0:00:19.1]} 43... Kf7 {[%clk 0:00:13.4]} 44. g4 {[%clk 0:00:19.7]}
44... Kg6 {[%clk 0:00:12.6]} 45. gxf5+ {[%clk 0:00:18.3]} 45... Kxf5 {[%clk
0:00:11]} 46. Bg4+ {[%clk 0:00:18.8]} 46... Kf6 {[%clk 0:00:11.3]} 47. Re2
{[%clk 0:00:17.7]} 47... Nxd4 {[%clk 0:00:07.3]} 48. Rxe7 {[%clk 0:00:17.9]}
48... Kxe7 {[%clk 0:00:02.1]} 49. Bxc8 {[%clk 0:00:18.1]} 1-0

[Event "Early-Titled-Tuesday-Blitz-March-05-2024"]
[Site "Chess.com"]
[Date "2024.03.05"]
[Round "9"]
[White "ReadySkate"]
[Black "FuenfgegenWilly"]
[Result "0-1"]
[WhiteElo "2564"]
[BlackElo "2456"]
[TimeControl "180+1"]
[EndTime "9:46:54 PST"]
[Termination "FuenfgegenWilly won by resignation"]

1. d4 {[%clk 0:02:56.2]} 1... f5 {[%clk 0:02:46.7]} 2. Nc3 {[%clk 0:02:55.3]}
2... d5 {[%clk 0:02:45.3]} 3. f3 {[%clk 0:02:55.1]} 3... Nf6 {[%clk 0:02:45.2]}
4. e4 {[%clk 0:02:54.9]} 4... fxe4 {[%clk 0:02:45.4]} 5. fxe4 {[%clk 0:02:55.8]}
5... dxe4 {[%clk 0:02:46.1]} 6. Nge2 {[%clk 0:02:55.1]} 6... g6 {[%clk
0:02:46.3]} 7. Ng3 {[%clk 0:02:55.2]} 7... Bg7 {[%clk 0:02:46.5]} 8. Bc4 {[%clk
0:02:53.1]} 8... e6 {[%clk 0:02:44.8]} 9. O-O {[%clk 0:02:53.6]} 9... Nc6 {[%clk
0:02:38.3]} 10. Be3 {[%clk 0:02:53.2]} 10... Nd5 {[%clk 0:02:34.1]} 11. Nxd5
{[%clk 0:02:46.3]} 11... exd5 {[%clk 0:02:33]} 12. Bb3 {[%clk 0:02:46.9]} 12...
Be6 {[%clk 0:02:30.7]} 13. c3 {[%clk 0:02:45.1]} 13... Qd7 {[%clk 0:02:26.1]}
14. a4 {[%clk 0:02:35.2]} 14... O-O-O {[%clk 0:02:19.4]} 15. a5 {[%clk
0:02:34.5]} 15... Rhf8 {[%clk 0:02:13.7]} 16. a6 {[%clk 0:02:33.8]} 16... Rxf1+
{[%clk 0:02:11.6]} 17. Qxf1 {[%clk 0:02:33.3]} 17... b6 {[%clk 0:02:11.6]} 18.
Ba4 {[%clk 0:02:32.8]} 18... Rf8 {[%clk 0:01:57.9]} 19. Qe2 {[%clk 0:02:31.1]}
19... Qd6 {[%clk 0:01:55.4]} 20. Rf1 {[%clk 0:02:30.4]} 20... Nd8 {[%clk
0:01:49.6]} 21. Rxf8 {[%clk 0:02:29.1]} 21... Qxf8 {[%clk 0:01:49.3]} 22. c4
{[%clk 0:02:26.8]} 22... Qb4 {[%clk 0:01:42.5]} 23. cxd5 {[%clk 0:02:23.2]}
23... Bxd5 {[%clk 0:01:40.1]} 24. Bc2 {[%clk 0:02:13.9]} 24... Qxb2 {[%clk
0:01:33.2]} 25. Qg4+ {[%clk 0:02:12.6]} 25... Be6 {[%clk 0:01:17.1]} 26. Qxe4
{[%clk 0:02:10.1]} 26... Qa1+ {[%clk 0:01:16.1]} 27. Kf2 {[%clk 0:02:05.7]}
27... Qxa6 {[%clk 0:01:04.2]} 28. Bg5 {[%clk 0:02:04.6]} 28... Qb7 {[%clk
0:00:50]} 29. Qe3 {[%clk 0:01:55.7]} 29... Qd5 {[%clk 0:00:49.3]} 30. Ne2 {[%clk
0:01:51]} 30... Nf7 {[%clk 0:00:41.3]} 31. Bf4 {[%clk 0:01:48.4]} 31... Nd6
{[%clk 0:00:36.8]} 32. Bd3 {[%clk 0:01:33]} 32... Nf5 {[%clk 0:00:30]} 33. Ba6+
{[%clk 0:01:31.8]} 33... Kd7 {[%clk 0:00:25.4]} 34. Qc1 {[%clk 0:01:29.5]} 34...
Bxd4+ {[%clk 0:00:22.2]} 35. Nxd4 {[%clk 0:01:26.4]} 35... Qxd4+ {[%clk
0:00:23.1]} 36. Kf1 {[%clk 0:01:24.5]} 36... c5 {[%clk 0:00:22.1]} 37. Bb5+
{[%clk 0:01:23.9]} 37... Ke7 {[%clk 0:00:22.2]} 38. Bg5+ {[%clk 0:01:17.9]}
38... Kf7 {[%clk 0:00:22.6]} 39. Be2 {[%clk 0:01:13.8]} 39... c4 {[%clk
0:00:21.1]} 40. Qa3 {[%clk 0:01:10.8]} 40... Qd7 {[%clk 0:00:18.4]} 41. g4
{[%clk 0:01:07.5]} 41... Nd4 {[%clk 0:00:17.8]} 42. Bh6 {[%clk 0:00:49.6]} 42...
Qe7 {[%clk 0:00:15.7]} 43. Qb2 {[%clk 0:00:41.2]} 43... Qf6+ {[%clk 0:00:14.8]}
44. Kg2 {[%clk 0:00:38.2]} 44... Nxe2 {[%clk 0:00:15.1]} 45. Qxe2 {[%clk
0:00:37.7]} 45... Bd5+ {[%clk 0:00:15.2]} 46. Kg1 {[%clk 0:00:35.6]} 46... Qd4+
{[%clk 0:00:15.3]} 47. Be3 {[%clk 0:00:35.3]} 47... Qe4 {[%clk 0:00:15.4]} 48.
Qf2+ {[%clk 0:00:31.3]} 48... Qf3 {[%clk 0:00:15.6]} 49. Qd2 {[%clk 0:00:26.4]}
49... Qh1+ {[%clk 0:00:15.4]} 50. Kf2 {[%clk 0:00:27]} 50... Qxh2+ {[%clk
0:00:15.8]} 51. Kf1 {[%clk 0:00:27.6]} 51... Qxd2 {[%clk 0:00:16]} 52. Bxd2
{[%clk 0:00:28.5]} 52... a5 {[%clk 0:00:16.2]} 53. Kf2 {[%clk 0:00:29.4]} 53...
h5 {[%clk 0:00:14.7]} 54. g5 {[%clk 0:00:29.1]} 54... Ke6 {[%clk 0:00:15]} 55.
Bc3 {[%clk 0:00:29.3]} 55... Kf5 {[%clk 0:00:14.5]} 56. Kg3 {[%clk 0:00:29.9]}
56... Kxg5 {[%clk 0:00:14.4]} 0-1

[Event "Early-Titled-Tuesday-Blitz-March-05-2024"]
[Site "Chess.com"]
[Date "2024.03.05"]
[Round "9"]
[White "TheMagician"]
[Black "SlavenPastar"]
[Result "0-1"]
[WhiteElo "2217"]
[BlackElo "2605"]
[TimeControl "180+1"]
[EndTime "9:46:54 PST"]
[Termination "SlavenPastar won by checkmate"]

1. d4 {[%clk 0:02:59.9]} 1... b6 {[%clk 0:02:59.2]} 2. e4 {[%clk 0:02:55.1]}
2... Bb7 {[%clk 0:02:59.6]} 3. Nd2 {[%clk 0:02:50.6]} 3... e6 {[%clk 0:02:59]}
4. Bd3 {[%clk 0:02:49.6]} 4... Nf6 {[%clk 0:02:59.6]} 5. Ngf3 {[%clk 0:02:49.2]}
5... d5 {[%clk 0:03:00.1]} 6. e5 {[%clk 0:02:47.8]} 6... Ne4 {[%clk 0:03:00.1]}
7. Qe2 {[%clk 0:02:46.7]} 7... Nxd2 {[%clk 0:02:59.5]} 8. Bxd2 {[%clk
0:02:46.7]} 8... c5 {[%clk 0:03:00.4]} 9. c3 {[%clk 0:02:43.2]} 9... Be7 {[%clk
0:02:58.2]} 10. h4 {[%clk 0:02:41.5]} 10... a5 {[%clk 0:02:58.6]} 11. h5 {[%clk
0:02:38.5]} 11... h6 {[%clk 0:02:58.9]} 12. Bb5+ {[%clk 0:02:36.1]} 12... Bc6
{[%clk 0:02:58.5]} 13. a4 {[%clk 0:02:35.6]} 13... Bxb5 {[%clk 0:02:58.7]} 14.
Qxb5+ {[%clk 0:02:35.1]} 14... Qd7 {[%clk 0:02:58.9]} 15. Qxd7+ {[%clk
0:02:22.9]} 15... Kxd7 {[%clk 0:02:55.7]} 16. Ke2 {[%clk 0:02:20.7]} 16... Nc6
{[%clk 0:02:53.9]} 17. Be3 {[%clk 0:02:04.6]} 17... Rhb8 {[%clk 0:02:52.6]} 18.
g4 {[%clk 0:01:35]} 18... b5 {[%clk 0:02:52.2]} 19. axb5 {[%clk 0:01:31.4]}
19... Rxb5 {[%clk 0:02:53.1]} 20. Ra2 {[%clk 0:01:28.8]} 20... cxd4 {[%clk
0:02:51]} 21. Nxd4 {[%clk 0:01:28.7]} 21... Nxd4+ {[%clk 0:02:47.1]} 22. Bxd4
{[%clk 0:01:26]} 22... Rab8 {[%clk 0:02:47.7]} 23. Rb1 {[%clk 0:01:22.9]} 23...
f6 {[%clk 0:02:40.6]} 24. f4 {[%clk 0:01:19]} 24... fxe5 {[%clk 0:02:40.6]} 25.
Bxe5 {[%clk 0:01:17]} 25... Rg8 {[%clk 0:02:39.4]} 26. Kd3 {[%clk 0:01:11.2]}
26... g6 {[%clk 0:02:39.8]} 27. Rh1 {[%clk 0:01:07.2]} 27... gxh5 {[%clk
0:02:39]} 28. Rxh5 {[%clk 0:01:06.4]} 28... Rxg4 {[%clk 0:02:33.6]} 29. Rxh6
{[%clk 0:01:06.3]} 29... Rg3+ {[%clk 0:02:32.6]} 30. Kc2 {[%clk 0:01:05.2]}
30... Rg2+ {[%clk 0:02:32.5]} 31. Kb1 {[%clk 0:01:04.4]} 31... a4 {[%clk
0:00:58]} 32. Rh7 {[%clk 0:01:02.9]} 32... Ke8 {[%clk 0:00:53.3]} 33. Rh8+
{[%clk 0:00:53.3]} 33... Kf7 {[%clk 0:00:50.6]} 34. Rh7+ {[%clk 0:00:52.7]}
34... Kf8 {[%clk 0:00:47.4]} 35. Rh8+ {[%clk 0:00:51.8]} 35... Kf7 {[%clk
0:00:46.5]} 36. Rh7+ {[%clk 0:00:51.9]} 36... Ke8 {[%clk 0:00:46.9]} 37. Rh8+
{[%clk 0:00:51.8]} 37... Kd7 {[%clk 0:00:45.6]} 38. Rh7 {[%clk 0:00:52.1]} 38...
a3 {[%clk 0:00:41.7]} 39. b4 {[%clk 0:00:49.7]} 39... Rg1+ {[%clk 0:00:31.3]}
40. Kc2 {[%clk 0:00:49]} 40... Rb7 {[%clk 0:00:21.6]} 41. Rxa3 {[%clk
0:00:45.1]} 41... Kc6 {[%clk 0:00:19.9]} 42. Ra6+ {[%clk 0:00:36.4]} 42... Kb5
{[%clk 0:00:16.6]} 43. Rxe6 {[%clk 0:00:27.5]} 43... Ra7 {[%clk 0:00:16.8]} 44.
Rexe7 {[%clk 0:00:20.2]} 44... Ra2+ {[%clk 0:00:13.9]} 45. Kd3 {[%clk
0:00:19.9]} 45... Rg3+ {[%clk 0:00:13]} 46. Kd4 {[%clk 0:00:11.8]} 46... Rd2#
{[%clk 0:00:13.9]} 0-1